[Event "*** Titled Tuesday 3|2 Blitz"]
[Site "Chess.com"]
[Date "2016.01.05"]
[Round "2"]
[White "BCNUM8"]
[Black "jefferyx"]
[Result "0-1"]
[WhiteElo "2137"]
[BlackElo "2544"]
[TimeControl "180+2"]
[EndTime "17:22:44 PST"]
[Termination "jefferyx won by resignation"]

1. d4 {[%clk 0:03:01.9]} 1... b5 {[%clk 0:03:00.9]} 2. Nf3 {[%clk 0:02:55.2]}
2... Bb7 {[%clk 0:03:02.2]} 3. e3 {[%clk 0:02:56.5]} 3... a6 {[%clk 0:03:03.8]}
4. c3 {[%clk 0:02:58]} 4... e6 {[%clk 0:03:05.4]} 5. Qb3 {[%clk 0:02:58.8]} 5...
g5 {[%clk 0:03:06.5]} 6. a4 {[%clk 0:02:56.1]} 6... Bd5 {[%clk 0:03:06.8]} 7.
Qc2 {[%clk 0:02:55.6]} 7... g4 {[%clk 0:03:08.1]} 8. Ne5 {[%clk 0:02:56.2]} 8...
d6 {[%clk 0:03:09.7]} 9. Nxg4 {[%clk 0:02:57]} 9... h5 {[%clk 0:03:10.7]} 10. e4
{[%clk 0:02:58.6]} 10... Bb7 {[%clk 0:02:47.8]} 11. Ne3 {[%clk 0:02:59]} 11...
Nf6 {[%clk 0:02:49.1]} 12. Nd2 {[%clk 0:02:52.8]} 12... b4 {[%clk 0:02:47.1]}
13. Bd3 {[%clk 0:02:36.2]} 13... Bh6 {[%clk 0:02:47.9]} 14. Nf3 {[%clk
0:02:34.9]} 14... Ng4 {[%clk 0:02:48.3]} 15. h3 {[%clk 0:02:31.3]} 15... Nf6
{[%clk 0:02:38.4]} 16. Bd2 {[%clk 0:02:30.4]} 16... Nc6 {[%clk 0:02:36.4]} 17.
O-O {[%clk 0:02:24.4]} 17... Rg8 {[%clk 0:02:37.3]} 18. Kh1 {[%clk 0:02:25]}
18... Nh7 {[%clk 0:02:21.4]} 19. d5 {[%clk 0:02:26.2]} 19... Ne7 {[%clk
0:02:19.5]} 20. c4 {[%clk 0:02:23.8]} 20... Ng6 {[%clk 0:02:18.9]} 21. c5 {[%clk
0:02:20.5]} 21... dxc5 {[%clk 0:02:15.6]} 22. Nc4 {[%clk 0:02:11.4]} 22... Bxd2
{[%clk 0:02:13]} 23. Qxd2 {[%clk 0:02:13]} 23... exd5 {[%clk 0:02:12.2]} 24. Na5
{[%clk 0:02:14.6]} 24... dxe4 {[%clk 0:02:09.2]} 25. Nxb7 {[%clk 0:02:13.5]}
25... Qxd3 {[%clk 0:02:09.6]} 26. Qxd3 {[%clk 0:02:09.6]} 26... exd3 {[%clk
0:02:11.5]} 27. Nxc5 {[%clk 0:02:11]} 27... O-O-O {[%clk 0:02:12.7]} 28. Nxa6
{[%clk 0:02:01]} 28... Nf4 {[%clk 0:02:14.1]} 29. g3 {[%clk 0:02:02.4]} 29...
Nxh3 {[%clk 0:02:14.9]} 30. Kh2 {[%clk 0:02:01.6]} 30... N3g5 {[%clk 0:02:14]}
31. Nxg5 {[%clk 0:02:03]} 31... Nxg5 {[%clk 0:02:15.4]} 32. Nxb4 {[%clk
0:02:04.4]} 32... Rd4 {[%clk 0:02:12.5]} 33. Nc6 {[%clk 0:02:03.1]} 33... Re4
{[%clk 0:02:10]} 34. Rad1 {[%clk 0:02:00.6]} 34... Rg6 {[%clk 0:01:26.7]} 35.
Na7+ {[%clk 0:01:45.3]} 35... Kb8 {[%clk 0:01:26.2]} 36. Nb5 {[%clk 0:01:47.2]}
36... Rxa4 {[%clk 0:00:54.8]} 37. Rxd3 {[%clk 0:01:46.7]} 37... Rb4 {[%clk
0:00:56.3]} 38. Nd4 {[%clk 0:01:32.2]} 38... Rxb2 {[%clk 0:00:57.5]} 39. Nc6+
{[%clk 0:01:33.3]} 39... Rxc6 {[%clk 0:00:58.1]} 40. Rd5 {[%clk 0:01:33.2]}
40... Rg6 {[%clk 0:00:57.1]} 41. Kg2 {[%clk 0:01:32.9]} 41... Ne6 {[%clk
0:00:55.1]} 42. Rd7 {[%clk 0:01:32.3]} 42... Rf6 {[%clk 0:00:52.6]} 43. Rh1
{[%clk 0:01:29.4]} 43... Rbxf2+ {[%clk 0:00:52.1]} 44. Kh3 {[%clk 0:01:30]} 0-1

[Event "*** Titled Tuesday 3|2 Blitz"]
[Site "Chess.com"]
[Date "2016.01.05"]
[Round "2"]
[White "Satoshi95"]
[Black "cool64chess"]
[Result "0-1"]
[WhiteElo "2098"]
[BlackElo "2228"]
[TimeControl "180+2"]
[EndTime "17:23:19 PST"]
[Termination "cool64chess won by resignation"]

1. e4 {[%clk 0:03:01.9]} 1... e6 {[%clk 0:03:00.1]} 2. f4 {[%clk 0:03:01.8]}
2... d5 {[%clk 0:03:00.6]} 3. e5 {[%clk 0:03:01.5]} 3... c5 {[%clk 0:03:00.9]}
4. Nf3 {[%clk 0:03:00.8]} 4... Nc6 {[%clk 0:03:01.7]} 5. c3 {[%clk 0:02:56.9]}
5... Nh6 {[%clk 0:02:57.8]} 6. Na3 {[%clk 0:02:50.9]} 6... Be7 {[%clk
0:02:56.3]} 7. Nc2 {[%clk 0:02:49.8]} 7... Nf5 {[%clk 0:02:54.3]} 8. Be2 {[%clk
0:02:42.8]} 8... b6 {[%clk 0:02:41.1]} 9. d4 {[%clk 0:02:29.3]} 9... Bb7 {[%clk
0:02:31.7]} 10. O-O {[%clk 0:02:29.7]} 10... cxd4 {[%clk 0:02:27.1]} 11. Ncxd4
{[%clk 0:02:29.6]} 11... Nfxd4 {[%clk 0:02:19.6]} 12. Nxd4 {[%clk 0:02:28.7]}
12... O-O {[%clk 0:02:07.9]} 13. Nxc6 {[%clk 0:02:15.2]} 13... Bxc6 {[%clk
0:02:04.6]} 14. f5 {[%clk 0:02:16.5]} 14... f6 {[%clk 0:01:43.8]} 15. fxe6
{[%clk 0:01:56.3]} 15... fxe5 {[%clk 0:01:43.1]} 16. Bh5 {[%clk 0:01:48.4]}
16... g6 {[%clk 0:01:33.2]} 17. Qg4 {[%clk 0:01:36.3]} 17... Bc5+ {[%clk
0:01:32]} 18. Be3 {[%clk 0:01:31.7]} 18... Bxe3+ {[%clk 0:01:32.1]} 19. Kh1
{[%clk 0:01:33]} 19... Qg5 {[%clk 0:01:30.5]} 20. Rxf8+ {[%clk 0:00:51.7]} 20...
Rxf8 {[%clk 0:01:29.5]} 21. e7 {[%clk 0:00:53]} 21... Rf5 {[%clk 0:00:33.5]} 22.
Qb4 {[%clk 0:00:09.1]} 22... Bc5 {[%clk 0:00:12.5]} 0-1

[Event "*** Titled Tuesday 3|2 Blitz"]
[Site "Chess.com"]
[Date "2016.01.05"]
[Round "2"]
[White "IMRosen"]
[Black "kharposh"]
[Result "1-0"]
[WhiteElo "2212"]
[BlackElo "2089"]
[TimeControl "180+2"]
[EndTime "17:23:38 PST"]
[Termination "IMRosen won by resignation"]

1. d4 {[%clk 0:03:01.9]} 1... d5 {[%clk 0:02:59.8]} 2. Nf3 {[%clk 0:03:03.4]}
2... c5 {[%clk 0:03:00.9]} 3. c3 {[%clk 0:02:49.4]} 3... Nc6 {[%clk 0:03:01.1]}
4. Bf4 {[%clk 0:02:49.5]} 4... Qb6 {[%clk 0:02:57.8]} 5. Qb3 {[%clk 0:02:46.3]}
5... c4 {[%clk 0:02:57.1]} 6. Qc2 {[%clk 0:02:43.6]} 6... Bf5 {[%clk 0:02:45]}
7. Qc1 {[%clk 0:02:42.9]} 7... Nf6 {[%clk 0:02:42.1]} 8. h3 {[%clk 0:02:43.3]}
8... e6 {[%clk 0:02:42.6]} 9. e3 {[%clk 0:02:44.5]} 9... Be7 {[%clk 0:02:37.2]}
10. Be2 {[%clk 0:02:45.4]} 10... O-O {[%clk 0:02:37]} 11. O-O {[%clk 0:02:47.1]}
11... Ne4 {[%clk 0:02:34.4]} 12. Nbd2 {[%clk 0:02:41.6]} 12... Nxd2 {[%clk
0:02:33.9]} 13. Qxd2 {[%clk 0:02:43.5]} 13... Rfe8 {[%clk 0:02:24.7]} 14. Bd1
{[%clk 0:02:42.3]} 14... Bf6 {[%clk 0:02:24.1]} 15. Qc1 {[%clk 0:02:39.3]} 15...
Rad8 {[%clk 0:02:19.6]} 16. Bc2 {[%clk 0:02:39.9]} 16... Bg6 {[%clk 0:02:18.2]}
17. Bxg6 {[%clk 0:02:37.2]} 17... hxg6 {[%clk 0:02:18.5]} 18. Qc2 {[%clk
0:02:38]} 18... e5 {[%clk 0:02:15.5]} 19. dxe5 {[%clk 0:02:38.6]} 19... Nxe5
{[%clk 0:02:16]} 20. Nxe5 {[%clk 0:02:39.9]} 20... Bxe5 {[%clk 0:02:16.5]} 21.
Bxe5 {[%clk 0:02:41.8]} 21... Rxe5 {[%clk 0:02:17.2]} 22. Rad1 {[%clk
0:02:43.7]} 22... Rde8 {[%clk 0:02:08.3]} 23. Rd4 {[%clk 0:02:43.9]} 23... Qe6
{[%clk 0:01:59.7]} 24. Qe2 {[%clk 0:02:41.4]} 24... f5 {[%clk 0:01:59.9]} 25.
Qf3 {[%clk 0:02:41.5]} 25... Re4 {[%clk 0:01:56.2]} 26. Rfd1 {[%clk 0:02:40.8]}
26... Rd8 {[%clk 0:01:43.6]} 27. Rxe4 {[%clk 0:02:34.2]} 27... Qxe4 {[%clk
0:01:39.2]} 28. Qxe4 {[%clk 0:02:30.7]} 28... fxe4 {[%clk 0:01:36.8]} 29. f3
{[%clk 0:02:32]} 29... exf3 {[%clk 0:01:35.1]} 30. gxf3 {[%clk 0:02:33.9]} 30...
Kf7 {[%clk 0:01:36.2]} 31. Kf2 {[%clk 0:02:32.2]} 31... Ke6 {[%clk 0:01:36.9]}
32. Rd4 {[%clk 0:02:22.7]} 32... Rh8 {[%clk 0:01:35]} 33. h4 {[%clk 0:02:22.8]}
33... g5 {[%clk 0:01:35.4]} 34. hxg5 {[%clk 0:01:30.3]} 34... Rh2+ {[%clk
0:01:35.5]} 35. Kg3 {[%clk 0:01:31.9]} 35... Rxb2 {[%clk 0:01:36.9]} 36. e4
{[%clk 0:01:33.5]} 36... dxe4 {[%clk 0:01:35.4]} 37. Rxe4+ {[%clk 0:01:35.2]}
37... Kd6 {[%clk 0:01:31.9]} 38. Rxc4 {[%clk 0:01:30.6]} 38... Rxa2 {[%clk
0:01:32.4]} 39. f4 {[%clk 0:01:31.8]} 39... g6 {[%clk 0:01:30]} 40. Rc8 {[%clk
0:01:29.8]} 40... a5 {[%clk 0:01:27.2]} 41. Rg8 {[%clk 0:01:28.1]} 41... a4
{[%clk 0:01:25.5]} 42. Rxg6+ {[%clk 0:01:29.6]} 42... Kd5 {[%clk 0:01:24.5]} 43.
Rb6 {[%clk 0:01:25.7]} 43... Rc2 {[%clk 0:01:12]} 44. Rxb7 {[%clk 0:01:23.8]}
44... Rxc3+ {[%clk 0:01:11.2]} 45. Kg4 {[%clk 0:01:25.1]} 45... a3 {[%clk
0:01:12.3]} 46. Ra7 {[%clk 0:01:24.2]} 46... Ke4 {[%clk 0:01:01.8]} 47. Ra4+
{[%clk 0:01:21.6]} 47... Ke3 {[%clk 0:01:01.1]} 48. g6 {[%clk 0:01:16.8]} 48...
Kf2 {[%clk 0:01:02.2]} 49. f5 {[%clk 0:01:15.2]} 49... Rg3+ {[%clk 0:01:02.6]}
50. Kh5 {[%clk 0:01:11]} 50... Rh3+ {[%clk 0:00:59.5]} 51. Kg5 {[%clk
0:01:12.1]} 51... Ke2 {[%clk 0:00:56.4]} 52. f6 {[%clk 0:01:09.7]} 1-0

[Event "*** Titled Tuesday 3|2 Blitz"]
[Site "Chess.com"]
[Date "2016.01.05"]
[Round "2"]
[White "jcgs1030"]
[Black "TheMagician"]
[Result "0-1"]
[WhiteElo "2179"]
[BlackElo "2166"]
[TimeControl "180+2"]
[EndTime "17:23:44 PST"]
[Termination "TheMagician won on time"]

1. e4 {[%clk 0:03:01.9]} 1... e5 {[%clk 0:02:57.4]} 2. Nf3 {[%clk 0:03:00.2]}
2... Nc6 {[%clk 0:02:58.2]} 3. Bb5 {[%clk 0:03:00.5]} 3... a6 {[%clk 0:02:59.2]}
4. Ba4 {[%clk 0:03:01.1]} 4... Nf6 {[%clk 0:02:59.2]} 5. O-O {[%clk 0:03:01.8]}
5... b5 {[%clk 0:02:59.5]} 6. Bb3 {[%clk 0:03:01.3]} 6... Be7 {[%clk 0:03:01.4]}
7. a4 {[%clk 0:03:00.1]} 7... bxa4 {[%clk 0:02:56.1]} 8. Rxa4 {[%clk 0:02:59.5]}
8... d6 {[%clk 0:02:48.6]} 9. d4 {[%clk 0:02:56]} 9... Bg4 {[%clk 0:02:16.3]}
10. c3 {[%clk 0:02:41.1]} 10... O-O {[%clk 0:02:01.3]} 11. Nbd2 {[%clk
0:02:35.4]} 11... a5 {[%clk 0:01:48]} 12. Re1 {[%clk 0:01:58.8]} 12... Rb8
{[%clk 0:01:19.3]} 13. d5 {[%clk 0:01:49.9]} 13... Na7 {[%clk 0:01:16.9]} 14.
Rxa5 {[%clk 0:01:48.5]} 14... Nc8 {[%clk 0:01:15.9]} 15. h3 {[%clk 0:01:46.1]}
15... Bxf3 {[%clk 0:01:05.7]} 16. Nxf3 {[%clk 0:01:42.8]} 16... Nd7 {[%clk
0:01:03.2]} 17. Bc2 {[%clk 0:01:40.5]} 17... c6 {[%clk 0:00:51.5]} 18. Ra6
{[%clk 0:01:04.9]} 18... cxd5 {[%clk 0:00:40.1]} 19. exd5 {[%clk 0:01:04.2]}
19... f5 {[%clk 0:00:22.3]} 20. b4 {[%clk 0:00:54.2]} 20... g6 {[%clk
0:00:16.6]} 21. Bh6 {[%clk 0:00:32.5]} 21... Rf7 {[%clk 0:00:14.3]} 22. Qa1
{[%clk 0:00:29.7]} 22... Qc7 {[%clk 0:00:11]} 23. Ba4 {[%clk 0:00:27.4]} 23...
Ndb6 {[%clk 0:00:09.1]} 24. Bc6 {[%clk 0:00:28.3]} 24... Bf6 {[%clk 0:00:08.5]}
25. Bg5 {[%clk 0:00:27.8]} 25... Bg7 {[%clk 0:00:08]} 0-1

[Event "*** Titled Tuesday 3|2 Blitz"]
[Site "Chess.com"]
[Date "2016.01.05"]
[Round "2"]
[White "Colombiano07"]
[Black "Malev212"]
[Result "0-1"]
[WhiteElo "2187"]
[BlackElo "2301"]
[TimeControl "180+2"]
[EndTime "17:23:48 PST"]
[Termination "Malev212 won by resignation"]

1. d4 {[%clk 0:03:01.7]} 1... Nf6 {[%clk 0:02:59]} 2. Nc3 {[%clk 0:02:58.5]}
2... g6 {[%clk 0:02:54.3]} 3. e4 {[%clk 0:02:53.9]} 3... d6 {[%clk 0:02:55]} 4.
Nf3 {[%clk 0:02:54.8]} 4... Bg7 {[%clk 0:02:54.9]} 5. h3 {[%clk 0:02:54]} 5...
O-O {[%clk 0:02:54.6]} 6. Be3 {[%clk 0:02:55]} 6... a6 {[%clk 0:02:53.8]} 7. a4
{[%clk 0:02:55.2]} 7... Nc6 {[%clk 0:02:53.8]} 8. Qd2 {[%clk 0:02:53.8]} 8... b6
{[%clk 0:02:51.4]} 9. Bh6 {[%clk 0:02:53.6]} 9... Bb7 {[%clk 0:02:50.6]} 10.
Bxg7 {[%clk 0:02:53.1]} 10... Kxg7 {[%clk 0:02:50.6]} 11. Be2 {[%clk 0:02:52.7]}
11... e5 {[%clk 0:02:50.8]} 12. O-O {[%clk 0:02:52.9]} 12... Re8 {[%clk
0:02:41.2]} 13. Rfe1 {[%clk 0:02:53.8]} 13... exd4 {[%clk 0:02:35.6]} 14. Nxd4
{[%clk 0:02:54.2]} 14... Nxd4 {[%clk 0:02:35.4]} 15. Qxd4 {[%clk 0:02:54.6]}
15... c5 {[%clk 0:02:35.9]} 16. Qd3 {[%clk 0:02:49.7]} 16... Nxe4 {[%clk
0:02:32.7]} 17. Rad1 {[%clk 0:02:49.9]} 17... Qf6 {[%clk 0:02:23]} 18. Nxe4
{[%clk 0:02:43.9]} 18... Bxe4 {[%clk 0:01:44.1]} 19. Qxd6 {[%clk 0:02:39.2]}
19... Re6 {[%clk 0:01:43.6]} 20. Qc7 {[%clk 0:02:21.8]} 20... Bxc2 {[%clk
0:01:30.9]} 21. Rc1 {[%clk 0:01:51.4]} 21... Bxa4 {[%clk 0:01:26.5]} 22. Bf3
{[%clk 0:01:35.3]} 22... Rae8 {[%clk 0:01:22.7]} 23. Rxe6 {[%clk 0:01:18.3]}
23... Rxe6 {[%clk 0:01:23.2]} 24. Rc3 {[%clk 0:01:08.2]} 24... Re1+ {[%clk
0:01:08.5]} 25. Kh2 {[%clk 0:01:09]} 25... Qe5+ {[%clk 0:01:09.5]} 26. Qxe5+
{[%clk 0:01:10.5]} 26... Rxe5 {[%clk 0:01:09.8]} 27. Ra3 {[%clk 0:01:02.3]}
27... Bb5 {[%clk 0:01:08.9]} 28. Bb7 {[%clk 0:01:03.9]} 28... a5 {[%clk
0:01:07.3]} 29. Rb3 {[%clk 0:01:04.8]} 29... c4 {[%clk 0:01:08]} 30. Rc3 {[%clk
0:00:55.1]} 30... Rc5 {[%clk 0:01:04.7]} 31. Kg3 {[%clk 0:00:45.6]} 31... Bc6
{[%clk 0:01:05.3]} 32. Ba6 {[%clk 0:00:37]} 32... b5 {[%clk 0:01:04.7]} 33. b3
{[%clk 0:00:34.4]} 33... cxb3 {[%clk 0:00:52.5]} 34. Rxb3 {[%clk 0:00:24.5]}
34... b4 {[%clk 0:00:52.2]} 35. f3 {[%clk 0:00:20.5]} 35... Bd5 {[%clk
0:00:49.9]} 36. Rb2 {[%clk 0:00:20.1]} 36... b3 {[%clk 0:00:49.7]} 37. Be2
{[%clk 0:00:10.9]} 37... a4 {[%clk 0:00:50]} 38. Bd1 {[%clk 0:00:12.2]} 38... a3
{[%clk 0:00:49.5]} 39. Rd2 {[%clk 0:00:13.1]} 39... a2 {[%clk 0:00:49.1]} 0-1

[Event "*** Titled Tuesday 3|2 Blitz"]
[Site "Chess.com"]
[Date "2016.01.05"]
[Round "2"]
[White "Alliswell998"]
[Black "chesstatour"]
[Result "0-1"]
[WhiteElo "2053"]
[BlackElo "1923"]
[TimeControl "180+2"]
[EndTime "17:24:08 PST"]
[Termination "chesstatour won by checkmate"]

1. e4 {[%clk 0:03:01.9]} 1... c6 {[%clk 0:03:00.3]} 2. d4 {[%clk 0:03:01.8]}
2... d5 {[%clk 0:03:01.3]} 3. exd5 {[%clk 0:03:03.7]} 3... cxd5 {[%clk
0:03:02.8]} 4. Bd3 {[%clk 0:03:05.2]} 4... Nc6 {[%clk 0:03:03.5]} 5. c3 {[%clk
0:03:06.7]} 5... g6 {[%clk 0:03:04.2]} 6. Bf4 {[%clk 0:03:07.7]} 6... Bg7 {[%clk
0:03:04.4]} 7. Nf3 {[%clk 0:03:08.9]} 7... Nh6 {[%clk 0:03:04.7]} 8. Nbd2 {[%clk
0:03:10.1]} 8... O-O {[%clk 0:03:05.3]} 9. O-O {[%clk 0:03:11]} 9... f6 {[%clk
0:03:06.3]} 10. Re1 {[%clk 0:03:09.1]} 10... Nf7 {[%clk 0:03:05.1]} 11. Bc2
{[%clk 0:02:57.2]} 11... e5 {[%clk 0:03:03.3]} 12. dxe5 {[%clk 0:02:57]} 12...
fxe5 {[%clk 0:03:05.2]} 13. Bg3 {[%clk 0:02:56.8]} 13... e4 {[%clk 0:03:05.7]}
14. Nd4 {[%clk 0:02:48.9]} 14... Bxd4 {[%clk 0:02:37.7]} 15. cxd4 {[%clk
0:02:50.8]} 15... Nxd4 {[%clk 0:02:38.7]} 16. Nb3 {[%clk 0:02:39.4]} 16... Nxc2
{[%clk 0:02:33.3]} 17. Qxc2 {[%clk 0:02:41.3]} 17... Bf5 {[%clk 0:02:16.1]} 18.
Nd4 {[%clk 0:02:38.5]} 18... Qb6 {[%clk 0:02:02.1]} 19. Qd2 {[%clk 0:02:23.5]}
19... Rad8 {[%clk 0:01:55.6]} 20. Rac1 {[%clk 0:02:20.1]} 20... Rd7 {[%clk
0:01:55.9]} 21. h4 {[%clk 0:02:13.7]} 21... Bg4 {[%clk 0:01:51.4]} 22. a4 {[%clk
0:01:58.5]} 22... Qf6 {[%clk 0:01:38.4]} 23. a5 {[%clk 0:01:49.3]} 23... Ne5
{[%clk 0:01:32.2]} 24. Bxe5 {[%clk 0:01:41.5]} 24... Qxe5 {[%clk 0:01:34.1]} 25.
Qe3 {[%clk 0:01:36.9]} 25... Qf6 {[%clk 0:01:28.9]} 26. b4 {[%clk 0:01:31.1]}
26... Qxh4 {[%clk 0:01:24.9]} 27. Rc3 {[%clk 0:01:30.1]} 27... Qf6 {[%clk
0:01:22.1]} 28. Rec1 {[%clk 0:01:30.1]} 28... Rdf7 {[%clk 0:01:20.6]} 29. R1c2
{[%clk 0:01:29]} 29... Qf4 {[%clk 0:00:59.3]} 30. Qxf4 {[%clk 0:01:03.7]} 30...
Rxf4 {[%clk 0:01:01.2]} 31. Rc5 {[%clk 0:01:03.8]} 31... Rd8 {[%clk 0:00:57]}
32. Rc7 {[%clk 0:01:03.6]} 32... Rf7 {[%clk 0:00:55.7]} 33. b5 {[%clk
0:00:55.5]} 33... Rdd7 {[%clk 0:00:42.8]} 34. Rc8+ {[%clk 0:00:41.2]} 34... Kg7
{[%clk 0:00:43.4]} 35. b6 {[%clk 0:00:41.6]} 35... axb6 {[%clk 0:00:41.6]} 36.
axb6 {[%clk 0:00:43.5]} 36... Rd6 {[%clk 0:00:36.3]} 37. Rb2 {[%clk 0:00:41.5]}
37... Bxc8 {[%clk 0:00:36]} 38. Rb4 {[%clk 0:00:36.6]} 38... Bd7 {[%clk
0:00:35.1]} 39. Nb3 {[%clk 0:00:35.6]} 39... Bc6 {[%clk 0:00:32.3]} 40. Nc5
{[%clk 0:00:36]} 40... d4 {[%clk 0:00:29.2]} 41. Kf1 {[%clk 0:00:33.7]} 41... e3
{[%clk 0:00:26.2]} 42. Ke1 {[%clk 0:00:34.1]} 42... exf2+ {[%clk 0:00:26.3]} 43.
Kf1 {[%clk 0:00:35.5]} 43... d3 {[%clk 0:00:23.2]} 44. Rb1 {[%clk 0:00:34.9]}
44... d2 {[%clk 0:00:21.1]} 45. Rd1 {[%clk 0:00:36.3]} 45... Bb5+ {[%clk
0:00:22.1]} 46. Nd3 {[%clk 0:00:37.2]} 46... Bxd3# {[%clk 0:00:22.6]} 0-1

[Event "*** Titled Tuesday 3|2 Blitz"]
[Site "Chess.com"]
[Date "2016.01.05"]
[Round "2"]
[White "jcibarra"]
[Black "oskariot"]
[Result "0-1"]
[WhiteElo "2498"]
[BlackElo "2340"]
[TimeControl "180+2"]
[EndTime "17:24:41 PST"]
[Termination "oskariot won by resignation"]

1. e4 {[%clk 0:03:01.9]} 1... c5 {[%clk 0:02:58.9]} 2. Nf3 {[%clk 0:03:02]} 2...
d6 {[%clk 0:02:58.2]} 3. d4 {[%clk 0:03:02.6]} 3... cxd4 {[%clk 0:02:59.2]} 4.
Nxd4 {[%clk 0:03:04.5]} 4... Nf6 {[%clk 0:03:00.8]} 5. Nc3 {[%clk 0:03:05.7]}
5... Nc6 {[%clk 0:03:02.5]} 6. Bg5 {[%clk 0:03:05.9]} 6... Bd7 {[%clk
0:03:03.8]} 7. Qd2 {[%clk 0:03:06.8]} 7... Rc8 {[%clk 0:03:04.8]} 8. f4 {[%clk
0:03:08.1]} 8... h6 {[%clk 0:03:03.9]} 9. Bxf6 {[%clk 0:03:05.3]} 9... gxf6
{[%clk 0:03:05.8]} 10. Nf5 {[%clk 0:03:01.7]} 10... Qa5 {[%clk 0:02:57.5]} 11.
O-O-O {[%clk 0:02:52.3]} 11... Bxf5 {[%clk 0:02:40]} 12. exf5 {[%clk 0:02:54.2]}
12... Qxf5 {[%clk 0:02:39.6]} 13. Nd5 {[%clk 0:02:48.9]} 13... e6 {[%clk
0:02:33.6]} 14. Nc3 {[%clk 0:02:16.7]} 14... Qa5 {[%clk 0:02:25.2]} 15. Qe1
{[%clk 0:01:57.3]} 15... f5 {[%clk 0:02:20.2]} 16. Kb1 {[%clk 0:01:52.1]} 16...
Bg7 {[%clk 0:01:57.8]} 17. Rxd6 {[%clk 0:01:21.7]} 17... Bxc3 {[%clk 0:01:55.9]}
18. Qxc3 {[%clk 0:01:22]} 18... Qxc3 {[%clk 0:01:53.9]} 19. bxc3 {[%clk
0:01:23.9]} 19... Ke7 {[%clk 0:01:55.4]} 20. Rd1 {[%clk 0:01:20.6]} 20... Rhd8
{[%clk 0:01:37.2]} 21. Be2 {[%clk 0:01:20.7]} 21... Na5 {[%clk 0:01:20.8]} 22.
Rxd8 {[%clk 0:01:17.7]} 22... Rxd8 {[%clk 0:01:21.8]} 23. g3 {[%clk 0:01:19.1]}
23... b6 {[%clk 0:01:19.3]} 24. Bd3 {[%clk 0:01:17.1]} 24... Nb7 {[%clk
0:01:18.8]} 25. Re1 {[%clk 0:01:13]} 25... Kf6 {[%clk 0:01:10.7]} 26. Kc1 {[%clk
0:01:14.3]} 26... Nc5 {[%clk 0:01:00.2]} 27. Re3 {[%clk 0:01:15.2]} 27... Rd5
{[%clk 0:00:56.5]} 28. c4 {[%clk 0:01:13.4]} 28... Rd6 {[%clk 0:00:56.9]} 29.
Kb2 {[%clk 0:01:11.3]} 29... Nb7 {[%clk 0:00:29.1]} 30. Kc3 {[%clk 0:01:11.4]}
30... Rc6 {[%clk 0:00:30.4]} 31. Re5 {[%clk 0:01:08]} 31... Nd6 {[%clk
0:00:30.6]} 32. Kd4 {[%clk 0:01:07.1]} 32... Nb7 {[%clk 0:00:23.5]} 33. h3
{[%clk 0:01:04.7]} 33... Rc8 {[%clk 0:00:19.6]} 34. Re3 {[%clk 0:01:00.3]} 34...
Nd6 {[%clk 0:00:19.5]} 35. a3 {[%clk 0:00:57.9]} 35... Ke7 {[%clk 0:00:20.5]}
36. Re5 {[%clk 0:00:57.2]} 36... f6 {[%clk 0:00:21.1]} 37. Re3 {[%clk
0:00:57.3]} 37... Kd7 {[%clk 0:00:21.9]} 38. g4 {[%clk 0:00:52.2]} 38... fxg4
{[%clk 0:00:16.4]} 39. hxg4 {[%clk 0:00:54.1]} 39... Rg8 {[%clk 0:00:17.6]} 40.
Be2 {[%clk 0:00:54.4]} 40... h5 {[%clk 0:00:16.7]} 41. f5 {[%clk 0:00:27.2]}
41... e5+ {[%clk 0:00:16.2]} 42. Kc3 {[%clk 0:00:21.7]} 42... hxg4 {[%clk
0:00:16.5]} 43. Rg3 {[%clk 0:00:23.3]} 43... Ne4+ {[%clk 0:00:17.7]} 0-1